[Event "Titled Tuesday Blitz October 31 Late 2023"]
[White "Toncheva, Nadya"]
[Black "Luczak, Filip"]
[WhiteFideId "2924056"]
[BlackFideId "1193686"]
[WhiteElo "2548"]
[BlackElo "2671"]
[Result "0-1"]
[Round "10"]
[TimeControl "180+1"]
[Date "2023.10.31"]
[WhiteClock "0:00:00"]
[BlackClock "0:00:17"]
[Board "24"]

1. e4 {[%clk 0:03:00]}  g6 {[%clk 0:02:57]} 2. d4 {[%clk 0:03:00]}  Bg7 {[%clk 0:02:57]} 3. c4 {[%clk 0:03:01]}  d6 {[%clk 0:02:57]} 4. Nc3 {[%clk 0:03:01]}  e5 {[%clk 0:02:54]} 5. d5 {[%clk 0:03:00]}  f5 {[%clk 0:02:52]} 6. Bd3 {[%clk 0:02:59]}  Nf6 {[%clk 0:02:52]} 7. exf5 {[%clk 0:02:58]}  gxf5 {[%clk 0:02:51]} 8. Nge2 {[%clk 0:02:58]}  O-O {[%clk 0:02:51]} 9. O-O {[%clk 0:02:58]}  Na6 {[%clk 0:02:51]} 10. f3 {[%clk 0:02:57]}  Nc5 {[%clk 0:02:51]} 11. Bc2 {[%clk 0:02:57]}  a5 {[%clk 0:02:51]} 12. Be3 {[%clk 0:02:57]}  b6 {[%clk 0:02:51]} 13. Rb1 {[%clk 0:02:51]}  Qe8 {[%clk 0:02:51]} 14. a3 {[%clk 0:02:49]}  a4 {[%clk 0:02:38]} 15. Kh1 {[%clk 0:02:32]}  Bd7 {[%clk 0:02:34]} 16. Bg1 {[%clk 0:02:07]}  Kh8 {[%clk 0:02:33]} 17. f4 {[%clk 0:02:06]}  e4 {[%clk 0:02:29]} 18. Nd4 {[%clk 0:01:54]}  Rg8 {[%clk 0:02:26]} 19. Ncb5 {[%clk 0:01:48]}  Rc8 {[%clk 0:02:15]} 20. Bxa4 {[%clk 0:01:39]}  Qg6 {[%clk 0:02:10]} 21. Bc2 {[%clk 0:01:31]}  Nh5 {[%clk 0:01:55]} 22. Qe2 {[%clk 0:01:23]}  Qh6 {[%clk 0:01:47]} 23. Qe1 {[%clk 0:00:50]}  Bf6 {[%clk 0:01:39]} 24. Ne2 {[%clk 0:00:43]}  Nd3 {[%clk 0:01:36]} 25. Qd2 {[%clk 0:00:18]}  Bxb5 {[%clk 0:01:33]} 26. cxb5 {[%clk 0:00:18]}  Rxg2 {[%clk 0:01:28]} 27. Kxg2 {[%clk 0:00:16]}  Rg8+ {[%clk 0:01:28]} 28. Kh1 {[%clk 0:00:10]}  Qg6 {[%clk 0:01:14]} 29. Ng3 {[%clk 0:00:07]}  Nxb2 {[%clk 0:00:37]} 30. Bd4 {[%clk 0:00:05]}  Nc4 {[%clk 0:00:34]} 31. Bxf6+ {[%clk 0:00:05]}  Nxf6 {[%clk 0:00:34]} 32. Qg2 {[%clk 0:00:04]}  Ne3 {[%clk 0:00:34]} 33. Qe2 {[%clk 0:00:04]}  Nfg4 {[%clk 0:00:27]} 34. Rfe1 {[%clk 0:00:03]}  Qh6 {[%clk 0:00:27]} 35. Bb3 {[%clk 0:00:02]}  Rg6 {[%clk 0:00:20]} 36. Rb2 {[%clk 0:00:02]}  Qh4 {[%clk 0:00:20]} 37. Rc1 {[%clk 0:00:02]}  Rh6 {[%clk 0:00:20]} 38. Qd2 {[%clk 0:00:01]}  Qxg3 {[%clk 0:00:17]} 39. Rg1 {[%clk 0:00:00]}  Qf3+ {[%clk 0:00:17]} 0-1


[Site "https://www.chess.com"]

[Event "Titled Tuesday Blitz October 31 Late 2023"]
[White "Korpics, Zsolt"]
[Black "Manukyan, Sargis A."]
[WhiteFideId "705241"]
[BlackFideId "13303970"]
[WhiteElo "2446"]
[BlackElo "2642"]
[Result "1-0"]
[Round "10"]
[TimeControl "180+1"]
[Date "2023.10.31"]
[WhiteClock "0:00:12"]
[BlackClock "0:00:35"]
[Board "25"]

1. e4 {[%clk 0:03:00]}  c5 {[%clk 0:03:00]} 2. Nf3 {[%clk 0:03:00]}  d6 {[%clk 0:03:00]} 3. Nc3 {[%clk 0:03:00]}  Nf6 {[%clk 0:03:00]} 4. e5 {[%clk 0:03:00]}  dxe5 {[%clk 0:03:00]} 5. Nxe5 {[%clk 0:03:01]}  Nbd7 {[%clk 0:03:00]} 6. d4 {[%clk 0:03:01]}  cxd4 {[%clk 0:02:55]} 7. Qxd4 {[%clk 0:03:01]}  Nxe5 {[%clk 0:02:55]} 8. Qxe5 {[%clk 0:03:01]}  e6 {[%clk 0:02:54]} 9. Bg5 {[%clk 0:03:01]}  Bd6 {[%clk 0:02:24]} 10. Bb5+ {[%clk 0:02:58]}  Kf8 {[%clk 0:02:18]} 11. Qd4 {[%clk 0:02:39]}  a6 {[%clk 0:02:07]} 12. O-O-O {[%clk 0:02:23]}  axb5 {[%clk 0:02:05]} 13. Qxd6+ {[%clk 0:02:22]}  Qxd6 {[%clk 0:02:05]} 14. Rxd6 {[%clk 0:02:22]}  Ke7 {[%clk 0:02:05]} 15. Rhd1 {[%clk 0:02:22]}  b4 {[%clk 0:02:03]} 16. Ne4 {[%clk 0:01:58]}  Rxa2 {[%clk 0:02:02]} 17. Kb1 {[%clk 0:01:56]}  Ra6 {[%clk 0:02:02]} 18. Rxa6 {[%clk 0:01:25]}  bxa6 {[%clk 0:02:02]} 19. Nxf6 {[%clk 0:01:26]}  gxf6 {[%clk 0:02:02]} 20. Be3 {[%clk 0:01:26]}  Rg8 {[%clk 0:01:44]} 21. Bc5+ {[%clk 0:01:25]}  Ke8 {[%clk 0:01:44]} 22. g3 {[%clk 0:01:07]}  b3 {[%clk 0:01:44]} 23. cxb3 {[%clk 0:00:54]}  Rg5 {[%clk 0:01:44]} 24. b4 {[%clk 0:00:51]}  Bd7 {[%clk 0:01:40]} 25. f4 {[%clk 0:00:45]}  Rh5 {[%clk 0:01:40]} 26. Rd2 {[%clk 0:00:44]}  e5 {[%clk 0:01:25]} 27. Be3 {[%clk 0:00:40]}  e4 {[%clk 0:01:20]} 28. Bc5 {[%clk 0:00:39]}  Bb5 {[%clk 0:01:08]} 29. Kc2 {[%clk 0:00:36]}  Bd3+ {[%clk 0:00:56]} 30. Kc3 {[%clk 0:00:35]}  Rd5 {[%clk 0:00:54]} 31. b3 {[%clk 0:00:22]}  f5 {[%clk 0:00:54]} 32. Bd4 {[%clk 0:00:18]}  h5 {[%clk 0:00:53]} 33. Bc5 {[%clk 0:00:18]}  Kd7 {[%clk 0:00:53]} 34. Rg2 {[%clk 0:00:17]}  Ke6 {[%clk 0:00:51]} 35. Rg1 {[%clk 0:00:15]}  Bb5 {[%clk 0:00:48]} 36. Rg2 {[%clk 0:00:12]}  Rd3+ {[%clk 0:00:48]} 37. Kc2 {[%clk 0:00:12]}  Rf3 {[%clk 0:00:48]} 38. Rd2 {[%clk 0:00:12]}  Bd3+ {[%clk 0:00:41]} 39. Kc3 {[%clk 0:00:10]}  Rf1 {[%clk 0:00:41]} 40. Kd4 {[%clk 0:00:10]}  Rb1 {[%clk 0:00:40]} 41. Kc3 {[%clk 0:00:09]}  Kd5 {[%clk 0:00:39]} 42. Be3 {[%clk 0:00:09]}  Rc1+ {[%clk 0:00:34]} 43. Kb2 {[%clk 0:00:09]}  Re1 {[%clk 0:00:35]} 44. Bc5 {[%clk 0:00:09]}  a5 {[%clk 0:00:27]} 45. Kc3 {[%clk 0:00:09]}  Rc1+ {[%clk 0:00:25]} 46. Kb2 {[%clk 0:00:09]}  Kc6 {[%clk 0:00:24]} 47. Kxc1 {[%clk 0:00:08]}  axb4 {[%clk 0:00:21]} 48. Bxb4 {[%clk 0:00:08]}  Kb5 {[%clk 0:00:22]} 49. Bc3 {[%clk 0:00:08]}  Kc5 {[%clk 0:00:22]} 50. Kd1 {[%clk 0:00:09]}  Kd5 {[%clk 0:00:22]} 51. Ke1 {[%clk 0:00:08]}  Kc5 {[%clk 0:00:23]} 52. Kf2 {[%clk 0:00:09]}  Kd5 {[%clk 0:00:23]} 53. Ke3 {[%clk 0:00:09]}  Kc5 {[%clk 0:00:23]} 54. Rxd3 {[%clk 0:00:09]}  exd3 {[%clk 0:00:24]} 55. Kxd3 {[%clk 0:00:10]}  Kd5 {[%clk 0:00:24]} 56. b4 {[%clk 0:00:10]}  Kd6 {[%clk 0:00:22]} 57. Kc4 {[%clk 0:00:10]}  Kc6 {[%clk 0:00:22]} 58. b5+ {[%clk 0:00:11]}  Kd6 {[%clk 0:00:22]} 59. Be5+ {[%clk 0:00:11]}  Kd7 {[%clk 0:00:23]} 60. b6 {[%clk 0:00:11]}  Kc6 {[%clk 0:00:23]} 61. Bc7 {[%clk 0:00:11]}  Kb7 {[%clk 0:00:23]} 62. Kd5 {[%clk 0:00:10]}  Kc8 {[%clk 0:00:23]} 63. Ke5 {[%clk 0:00:10]}  f6+ {[%clk 0:00:23]} 64. Kxf6 {[%clk 0:00:11]}  h4 {[%clk 0:00:24]} 65. gxh4 {[%clk 0:00:10]}  Kb7 {[%clk 0:00:24]} 66. h5 {[%clk 0:00:11]}  Kc8 {[%clk 0:00:25]} 67. h6 {[%clk 0:00:12]}  Kb7 {[%clk 0:00:26]} 68. h7 {[%clk 0:00:12]}  Kc6 {[%clk 0:00:27]} 69. h8=Q {[%clk 0:00:11]}  Kb5 {[%clk 0:00:28]} 70. Kxf5 {[%clk 0:00:10]}  Kc4 {[%clk 0:00:29]} 71. Qe5 {[%clk 0:00:10]}  Kd3 {[%clk 0:00:30]} 72. Qe4+ {[%clk 0:00:10]}  Kd2 {[%clk 0:00:30]} 73. Qf3 {[%clk 0:00:10]}  Ke1 {[%clk 0:00:30]} 74. Qg2 {[%clk 0:00:10]}  Kd1 {[%clk 0:00:30]} 75. h4 {[%clk 0:00:10]}  Kc1 {[%clk 0:00:31]} 76. h5 {[%clk 0:00:11]}  Kb1 {[%clk 0:00:32]} 77. h6 {[%clk 0:00:12]}  Ka1 {[%clk 0:00:33]} 78. h7 {[%clk 0:00:12]}  Kb1 {[%clk 0:00:34]} 79. h8=Q {[%clk 0:00:12]}  Kc1 {[%clk 0:00:35]} 80. Qhh1# {[%clk 0:00:12]} 1-0


[Site "https://www.chess.com"]

[Event "Titled Tuesday Blitz October 31 Late 2023"]
[White "Zeynalli, Rashad"]
[Black "Vasquez Schroeder, Rodrigo"]
[WhiteFideId "13403320"]
[BlackFideId "3400042"]
[WhiteElo "2632"]
[BlackElo "2857"]
[Result "1-0"]
[Round "10"]
[TimeControl "180+1"]
[Date "2023.10.31"]
[WhiteClock "0:01:47"]
[BlackClock "0:01:43"]
[Board "26"]

1. e4 {[%clk 0:02:59]}  c5 {[%clk 0:02:56]} 2. Nf3 {[%clk 0:02:59]}  d6 {[%clk 0:02:56]} 3. d4 {[%clk 0:02:59]}  cxd4 {[%clk 0:02:56]} 4. Nxd4 {[%clk 0:03:00]}  Nf6 {[%clk 0:02:57]} 5. Nc3 {[%clk 0:03:01]}  a6 {[%clk 0:02:58]} 6. Be3 {[%clk 0:03:01]}  e6 {[%clk 0:02:57]} 7. f3 {[%clk 0:03:00]}  b5 {[%clk 0:02:56]} 8. Qd2 {[%clk 0:03:00]}  Nbd7 {[%clk 0:02:55]} 9. g4 {[%clk 0:02:59]}  b4 {[%clk 0:02:51]} 10. Na4 {[%clk 0:02:58]}  h6 {[%clk 0:02:51]} 11. h4 {[%clk 0:02:44]}  d5 {[%clk 0:02:32]} 12. O-O-O {[%clk 0:02:44]}  dxe4 {[%clk 0:02:28]} 13. Bc4 {[%clk 0:02:41]}  Qa5 {[%clk 0:02:22]} 14. b3 {[%clk 0:02:32]}  exf3 {[%clk 0:02:15]} 15. g5 {[%clk 0:02:23]}  Ne4 {[%clk 0:02:09]} 16. Qe1 {[%clk 0:02:02]}  Ndc5 {[%clk 0:01:52]} 17. Nc6 {[%clk 0:01:55]}  Qc7 {[%clk 0:01:51]} 18. Rd8+ {[%clk 0:01:54]}  Qxd8 {[%clk 0:01:51]} 19. Nxd8 {[%clk 0:01:55]}  Nxa4 {[%clk 0:01:46]} 20. bxa4 {[%clk 0:01:47]}  Kxd8 {[%clk 0:01:45]} 21. Bb6+ {[%clk 0:01:47]}  Ke8 {[%clk 0:01:43]} 22. Qxe4 {[%clk 0:01:47]} 1-0


[Site "https://www.chess.com"]

[Event "Titled Tuesday Blitz October 31 Late 2023"]
[White "Karamsetty, Jeevan"]
[Black "Krzyzanowski, Marcin"]
[WhiteFideId "2025337"]
[BlackFideId "1132199"]
[WhiteElo "2618"]
[BlackElo "2759"]
[Result "0-1"]
[Round "10"]
[TimeControl "180+1"]
[Date "2023.10.31"]
[WhiteClock "0:00:16"]
[BlackClock "0:00:08"]
[Board "29"]

1. e4 {[%clk 0:03:00]}  e5 {[%clk 0:02:55]} 2. Nf3 {[%clk 0:03:00]}  Nc6 {[%clk 0:02:55]} 3. Bc4 {[%clk 0:03:01]}  Nf6 {[%clk 0:02:55]} 4. O-O {[%clk 0:02:58]}  Nxe4 {[%clk 0:02:51]} 5. Bd5 {[%clk 0:02:55]}  Nf6 {[%clk 0:02:44]} 6. Bxc6 {[%clk 0:02:54]}  bxc6 {[%clk 0:02:37]} 7. Nxe5 {[%clk 0:02:54]}  Be7 {[%clk 0:02:37]} 8. d4 {[%clk 0:02:53]}  O-O {[%clk 0:02:38]} 9. Nc3 {[%clk 0:02:50]}  c5 {[%clk 0:02:35]} 10. Be3 {[%clk 0:02:46]}  cxd4 {[%clk 0:02:31]} 11. Bxd4 {[%clk 0:02:43]}  Bb7 {[%clk 0:02:30]} 12. Ng4 {[%clk 0:02:37]}  d6 {[%clk 0:02:23]} 13. Re1 {[%clk 0:02:35]}  Nxg4 {[%clk 0:02:22]} 14. Qxg4 {[%clk 0:02:36]}  Bf6 {[%clk 0:02:23]} 15. Rad1 {[%clk 0:02:36]}  Bxd4 {[%clk 0:02:20]} 16. Rxd4 {[%clk 0:02:35]}  Re8 {[%clk 0:02:19]} 17. Red1 {[%clk 0:02:32]}  Qe7 {[%clk 0:02:16]} 18. h3 {[%clk 0:02:31]}  Qe5 {[%clk 0:02:11]} 19. R4d3 {[%clk 0:02:29]}  h5 {[%clk 0:02:06]} 20. Qb4 {[%clk 0:02:26]}  Ba6 {[%clk 0:01:35]} 21. Re3 {[%clk 0:02:20]}  Qf5 {[%clk 0:01:11]} 22. Rxe8+ {[%clk 0:02:19]}  Rxe8 {[%clk 0:01:12]} 23. Qa4 {[%clk 0:02:19]}  Qc8 {[%clk 0:01:12]} 24. Nd5 {[%clk 0:02:14]}  c6 {[%clk 0:00:58]} 25. Ne3 {[%clk 0:02:07]}  d5 {[%clk 0:00:51]} 26. c3 {[%clk 0:02:02]}  g6 {[%clk 0:00:40]} 27. Qf4 {[%clk 0:01:57]}  Kg7 {[%clk 0:00:37]} 28. Qd4+ {[%clk 0:01:55]}  Kh7 {[%clk 0:00:35]} 29. Qxa7 {[%clk 0:01:55]}  Kg7 {[%clk 0:00:27]} 30. Rd4 {[%clk 0:01:53]}  Be2 {[%clk 0:00:22]} 31. Rf4 {[%clk 0:01:50]}  Qe6 {[%clk 0:00:21]} 32. Qd4+ {[%clk 0:01:45]}  Kg8 {[%clk 0:00:20]} 33. Rf6 {[%clk 0:01:44]}  Qd7 {[%clk 0:00:17]} 34. a4 {[%clk 0:01:41]}  Re4 {[%clk 0:00:16]} 35. Qd2 {[%clk 0:01:35]}  Ba6 {[%clk 0:00:16]} 36. b4 {[%clk 0:01:30]}  Bb7 {[%clk 0:00:14]} 37. Rf3 {[%clk 0:01:21]}  d4 {[%clk 0:00:14]} 38. cxd4 {[%clk 0:01:20]}  Rxd4 {[%clk 0:00:15]} 39. Qc3 {[%clk 0:01:18]}  c5 {[%clk 0:00:16]} 40. Rg3 {[%clk 0:01:11]}  cxb4 {[%clk 0:00:15]} 41. Qb3 {[%clk 0:01:12]}  Kg7 {[%clk 0:00:12]} 42. a5 {[%clk 0:01:08]}  h4 {[%clk 0:00:13]} 43. Rg4 {[%clk 0:01:03]}  Rxg4 {[%clk 0:00:12]} 44. hxg4 {[%clk 0:01:01]}  Qd4 {[%clk 0:00:12]} 45. Nc2 {[%clk 0:00:55]}  Qd1+ {[%clk 0:00:09]} 46. Kh2 {[%clk 0:00:52]}  Qxg4 {[%clk 0:00:09]} 47. Qb2+ {[%clk 0:00:44]}  Kh7 {[%clk 0:00:09]} 48. f3 {[%clk 0:00:38]}  Qg3+ {[%clk 0:00:08]} 49. Kh1 {[%clk 0:00:20]}  h3 {[%clk 0:00:08]} 50. Nxb4 {[%clk 0:00:20]}  hxg2+ {[%clk 0:00:08]} 51. Kg1 {[%clk 0:00:18]}  Qxf3 {[%clk 0:00:07]} 52. Qf2 {[%clk 0:00:16]}  Qd1+ {[%clk 0:00:07]} 53. Kh2 {[%clk 0:00:17]}  Qh1+ {[%clk 0:00:07]} 54. Kg3 {[%clk 0:00:16]}  g1=Q+ {[%clk 0:00:08]} 0-1


[Site "https://www.chess.com"]

[Event "Titled Tuesday Blitz October 31 Late 2023"]
[White "NelsonLinda"]
[Black "Korchmar, Vasiliy"]
[BlackFideId "24131750"]
[WhiteElo "2597"]
[BlackElo "2738"]
[Result "0-1"]
[Round "10"]
[TimeControl "180+1"]
[Date "2023.10.31"]
[WhiteClock "0:00:26"]
[BlackClock "0:00:56"]
[Board "31"]

1. b3 {[%clk 0:03:00]}  c5 {[%clk 0:02:59]} 2. g3 {[%clk 0:02:53]}  g6 {[%clk 0:02:58]} 3. Bb2 {[%clk 0:02:52]}  Nf6 {[%clk 0:02:59]} 4. Bxf6 {[%clk 0:02:52]}  exf6 {[%clk 0:02:59]} 5. c4 {[%clk 0:02:53]}  h5 {[%clk 0:02:57]} 6. h4 {[%clk 0:02:53]}  d5 {[%clk 0:02:53]} 7. cxd5 {[%clk 0:02:51]}  Qxd5 {[%clk 0:02:54]} 8. Nf3 {[%clk 0:02:51]}  Nc6 {[%clk 0:02:48]} 9. Nc3 {[%clk 0:02:51]}  Qd8 {[%clk 0:02:44]} 10. Bg2 {[%clk 0:02:50]}  Bh6 {[%clk 0:02:39]} 11. O-O {[%clk 0:02:49]}  Bg4 {[%clk 0:02:39]} 12. Ne4 {[%clk 0:02:40]}  Qe7 {[%clk 0:02:36]} 13. d3 {[%clk 0:02:35]}  f5 {[%clk 0:02:33]} 14. Nc3 {[%clk 0:02:29]}  O-O-O {[%clk 0:02:17]} 15. e3 {[%clk 0:02:11]}  g5 {[%clk 0:02:13]} 16. Qc1 {[%clk 0:01:54]}  Bxf3 {[%clk 0:01:59]} 17. Bxf3 {[%clk 0:01:55]}  Ne5 {[%clk 0:02:00]} 18. Bg2 {[%clk 0:01:56]}  gxh4 {[%clk 0:02:00]} 19. Nd5 {[%clk 0:01:56]}  Rxd5 {[%clk 0:01:57]} 20. Bxd5 {[%clk 0:01:56]}  hxg3 {[%clk 0:01:57]} 21. f4 {[%clk 0:01:35]}  Nxd3 {[%clk 0:01:28]} 22. Qd2 {[%clk 0:01:31]}  Qh4 {[%clk 0:01:22]} 23. Rad1 {[%clk 0:01:06]}  Nf2 {[%clk 0:01:16]} 24. Be6+ {[%clk 0:01:05]}  fxe6 {[%clk 0:01:12]} 25. Qd7+ {[%clk 0:01:04]}  Kb8 {[%clk 0:01:13]} 26. Qd6+ {[%clk 0:00:49]}  Ka8 {[%clk 0:01:13]} 27. Rxf2 {[%clk 0:00:50]}  gxf2+ {[%clk 0:01:12]} 28. Kf1 {[%clk 0:00:51]}  a6 {[%clk 0:01:05]} 29. Rd2 {[%clk 0:00:27]}  Qh1+ {[%clk 0:00:57]} 30. Kxf2 {[%clk 0:00:25]}  Rg8 {[%clk 0:00:58]} 31. Ke2 {[%clk 0:00:25]}  Rg2+ {[%clk 0:00:56]} 32. Kd3 {[%clk 0:00:26]}  Rxd2+ {[%clk 0:00:56]} 33. Kxd2 {[%clk 0:00:26]}  Qd5+ {[%clk 0:00:56]} 0-1


[Site "https://www.chess.com"]

[Event "Titled Tuesday Blitz October 31 Late 2023"]
[White "Skatchkov, Valery"]
[Black "Blanco Ronquillo, Humberto L."]
[WhiteFideId "24195812"]
[BlackFideId "3504239"]
[WhiteElo "2595"]
[BlackElo "2724"]
[Result "0-1"]
[Round "10"]
[TimeControl "180+1"]
[Date "2023.10.31"]
[WhiteClock "0:01:06"]
[BlackClock "0:01:53"]
[Board "32"]

1. d4 {[%clk 0:03:00]}  d5 {[%clk 0:02:59]} 2. c4 {[%clk 0:03:00]}  e6 {[%clk 0:02:59]} 3. Nf3 {[%clk 0:03:00]}  Nf6 {[%clk 0:02:59]} 4. g3 {[%clk 0:03:01]}  dxc4 {[%clk 0:02:59]} 5. Bg2 {[%clk 0:03:01]}  c5 {[%clk 0:03:00]} 6. O-O {[%clk 0:02:58]}  Nc6 {[%clk 0:03:00]} 7. Qa4 {[%clk 0:02:47]}  Bd7 {[%clk 0:02:59]} 8. Qxc4 {[%clk 0:02:47]}  b5 {[%clk 0:02:59]} 9. Qd3 {[%clk 0:02:47]}  c4 {[%clk 0:03:00]} 10. Qd1 {[%clk 0:02:44]}  Rc8 {[%clk 0:03:00]} 11. a4 {[%clk 0:02:40]}  b4 {[%clk 0:02:59]} 12. Nbd2 {[%clk 0:02:34]}  Na5 {[%clk 0:02:56]} 13. Qc2 {[%clk 0:02:31]}  Be7 {[%clk 0:02:52]} 14. Ne5 {[%clk 0:02:28]}  c3 {[%clk 0:02:50]} 15. bxc3 {[%clk 0:02:28]}  Rxc3 {[%clk 0:02:49]} 16. Qb1 {[%clk 0:02:28]}  O-O {[%clk 0:02:40]} 17. Bb2 {[%clk 0:02:28]}  Rc8 {[%clk 0:02:41]} 18. Qd3 {[%clk 0:02:28]}  Qb6 {[%clk 0:02:35]} 19. Ne4 {[%clk 0:02:23]}  Rfd8 {[%clk 0:02:32]} 20. Nxd7 {[%clk 0:02:08]}  Rxd7 {[%clk 0:02:31]} 21. Rfc1 {[%clk 0:02:08]}  Rdc7 {[%clk 0:02:21]} 22. Rxc7 {[%clk 0:02:02]}  Rxc7 {[%clk 0:02:22]} 23. Rb1 {[%clk 0:01:51]}  Nd5 {[%clk 0:02:21]} 24. h4 {[%clk 0:01:48]}  h6 {[%clk 0:02:19]} 25. Nc5 {[%clk 0:01:17]}  Bxc5 {[%clk 0:02:08]} 26. dxc5 {[%clk 0:01:18]}  Qxc5 {[%clk 0:02:09]} 27. Bd4 {[%clk 0:01:18]}  Qc4 {[%clk 0:02:03]} 28. Qxc4 {[%clk 0:01:16]}  Rxc4 {[%clk 0:02:04]} 29. Bxa7 {[%clk 0:01:15]}  Nc3 {[%clk 0:01:54]} 30. Rb2 {[%clk 0:01:14]}  Nxa4 {[%clk 0:01:53]} 31. Ra2 {[%clk 0:01:06]}  b3 {[%clk 0:01:53]} 0-1


[Site "https://www.chess.com"]

[Event "Titled Tuesday Blitz October 31 Late 2023"]
[White "Bazilius, Augustinas"]
[Black "Rosen, Eric"]
[WhiteFideId "12832251"]
[BlackFideId "2032562"]
[WhiteElo "2530"]
[BlackElo "2659"]
[Result "0-1"]
[Round "10"]
[TimeControl "180+1"]
[Date "2023.10.31"]
[WhiteClock "0:00:00"]
[BlackClock "0:00:06"]
[Board "36"]

1. d4 {[%clk 0:02:30]}  d5 {[%clk 0:02:59]} 2. c4 {[%clk 0:02:30]}  e6 {[%clk 0:02:59]} 3. Nf3 {[%clk 0:02:30]}  Nf6 {[%clk 0:03:00]} 4. g3 {[%clk 0:02:30]}  dxc4 {[%clk 0:03:00]} 5. Bg2 {[%clk 0:02:31]}  Bb4+ {[%clk 0:02:59]} 6. Nbd2 {[%clk 0:02:29]}  b5 {[%clk 0:02:58]} 7. O-O {[%clk 0:02:25]}  Bb7 {[%clk 0:02:57]} 8. Nxc4 {[%clk 0:02:01]}  O-O {[%clk 0:01:58]} 9. Nce5 {[%clk 0:01:57]}  Bd6 {[%clk 0:01:51]} 10. Bg5 {[%clk 0:01:48]}  h6 {[%clk 0:01:50]} 11. Bxf6 {[%clk 0:01:48]}  Qxf6 {[%clk 0:01:51]} 12. Rc1 {[%clk 0:01:43]}  Rd8 {[%clk 0:01:50]} 13. Nxf7 {[%clk 0:01:20]}  Qxf7 {[%clk 0:01:40]} 14. Ne5 {[%clk 0:01:19]}  Bxe5 {[%clk 0:01:22]} 15. Bxb7 {[%clk 0:01:19]}  Bxd4 {[%clk 0:01:16]} 16. e3 {[%clk 0:01:03]}  Bf6 {[%clk 0:01:12]} 17. Qf3 {[%clk 0:01:01]}  Bxb2 {[%clk 0:00:27]} 18. Rcd1 {[%clk 0:00:57]}  Qxf3 {[%clk 0:00:15]} 19. Rxd8+ {[%clk 0:00:55]}  Qf8 {[%clk 0:00:15]} 20. Rxf8+ {[%clk 0:00:55]}  Kxf8 {[%clk 0:00:16]} 21. Bxa8 {[%clk 0:00:55]}  c6 {[%clk 0:00:11]} 22. Rb1 {[%clk 0:00:47]}  Ba3 {[%clk 0:00:12]} 23. Kg2 {[%clk 0:00:39]}  Ke7 {[%clk 0:00:12]} 24. Rd1 {[%clk 0:00:30]}  Bd6 {[%clk 0:00:07]} 25. Bb7 {[%clk 0:00:27]}  a5 {[%clk 0:00:03]} 26. f4 {[%clk 0:00:26]}  a4 {[%clk 0:00:02]} 27. Kf3 {[%clk 0:00:24]}  b4 {[%clk 0:00:02]} 28. e4 {[%clk 0:00:19]}  e5 {[%clk 0:00:03]} 29. f5 {[%clk 0:00:13]}  Kd7 {[%clk 0:00:03]} 30. Bc8+ {[%clk 0:00:13]}  Kc7 {[%clk 0:00:04]} 31. Be6 {[%clk 0:00:12]}  Na6 {[%clk 0:00:04]} 32. Bc4 {[%clk 0:00:09]}  Nc5 {[%clk 0:00:05]} 33. g4 {[%clk 0:00:09]}  Be7 {[%clk 0:00:05]} 34. Be6 {[%clk 0:00:06]}  Kb6 {[%clk 0:00:04]} 35. Kg3 {[%clk 0:00:05]}  Kb5 {[%clk 0:00:04]} 36. Rb1 {[%clk 0:00:02]}  Ka5 {[%clk 0:00:04]} 37. Bf7 {[%clk 0:00:02]}  Nd3 {[%clk 0:00:02]} 38. h4 {[%clk 0:00:02]}  c5 {[%clk 0:00:03]} 39. Kf3 {[%clk 0:00:01]}  Kb5 {[%clk 0:00:03]} 40. Kg3 {[%clk 0:00:01]}  c4 {[%clk 0:00:03]} 41. Rd1 {[%clk 0:00:02]}  b3 {[%clk 0:00:04]} 42. axb3 {[%clk 0:00:01]}  axb3 {[%clk 0:00:05]} 43. Rxd3 {[%clk 0:00:00]}  cxd3 {[%clk 0:00:04]} 44. Bxb3 {[%clk 0:00:01]}  Kb4 {[%clk 0:00:05]} 45. Bd1 {[%clk 0:00:00]}  Kc3 {[%clk 0:00:06]} 0-1


[Site "https://www.chess.com"]